Cogmind - Beta 17 @@@ ROGUE MODE // 2026.06.29 @ 15:07:11 Player: BlobtheGreat Result: Destroyed by P-60 Hacker with Shock Rifle Performance ------------- Evolutions (1) 500 Regions Visited (4) 800 Robots Destroyed (76) 380 Value Destroyed (2348) 2348 Prototype IDs (7) 140 Alien Tech Used (0) 0 Bonus (624) 624 TOTAL SCORE: 4792 Bonus ------- High Alert Combat Kills 205 Follower Combat Kills 219 Entered Garrisons 200 Cogmind --------- Core Integrity 0/400 Matter 223/300 Energy 100/100 System Corruption 11% Temperature Cool (0) Movement Core (100) Ox1 Location -9/Garrison Parts ------- > --- POWER (1) -------- (None) > --- PROPULSION (3) --- (None) > --- UTILITY (3) ------ (None) > --- WEAPON (2) ------- Small Laser Heavy Flail > --- INVENTORY (5) ---- Improved Flight Unit Medium Storage Unit Shield Generator Rocket Launcher Plasma Cutter Peak State ------------ > --- POWER ------------ Cooled Ion Engine > --- PROPULSION ------- Light Treads Light Treads Light Treads > --- UTILITY ---------- Medium Storage Unit Light Armor Plating Light Armor Plating > --- WEAPON ----------- Advanced Beam Cannon Scatter Rocket Array > --- INVENTORY -------- Heavy Ion Engine Improved Flight Unit Improved Flight Unit Improved Flight Unit Improved Flight Unit Seismic Detector Hacking Suite Medium Laser Rocket Launcher Plasma Cutter [Rating: 20] Favorites ----------- Power Cooled Ion Engine Engine Cooled Ion Engine Propulsion Light Treads Treads Light Treads Leg Aluminum Leg Flight Unit Improved Flight Unit Utility Light Armor Plating Device Heat Sink Storage High-capacity Storage Unit Protection Light Armor Plating Weapon Heavy Assault Rifle Energy Gun Small Laser Energy Cannon Advanced Beam Cannon Ballistic Gun Heavy Assault Rifle Ballistic Cannon Light Cannon Launcher Mini Grenade Launcher Special Weapon Plasma Cutter Impact Weapon Heavy Flail Build | -11 -10 -9 -9 -9 ------- Run | Yrd Mat Mat Sto Gar Slots Evolved 2 | . . 2 . . Power . | . . . . . Propulsion 1 | . . 1 . . Utility 1 | . . 1 . . Weapon . | . . . . . Parts Attached 51 | 6 5 8 16 16 Power 5 | 1 1 . 2 1 Engine 5 | 1 1 . 2 1 Core . | . . . . . Reactor . | . . . . . Propulsion 18 | 2 2 2 7 5 Treads 15 | 2 . 2 6 5 Leg 2 | . 2 . . . Wheel . | . . . . . Hover . | . . . . . Flight 1 | . . . 1 . Utility 10 | 1 1 2 3 3 Device 1 | . . . . 1 Storage 4 | 1 . 1 2 . Processor . | . . . . . Hackware . | . . . . . Protection 5 | . 1 1 1 2 Artifact . | . . . . . Weapon 18 | 2 1 4 4 7 Energy Gun 4 | 1 . 1 . 2 Energy Cannon 1 | . . . 1 . Ballistic Gun 7 | 1 . 3 . 3 Ballistic Cannon 1 | . 1 . . . Launcher 3 | . . . 2 1 Special Weapon 1 | . . . 1 . Impact Weapon 1 | . . . . 1 Slashing Weapon . | . . . . . Piercing Weapon . | . . . . . Special Melee Weapon . | . . . . . Unidentified Prototypes 6 | . . 1 5 . Parts Lost 26 | . 3 3 . 20 Power 3 | . 1 . . 2 Propulsion 8 | . 1 . . 7 Utility 6 | . . 1 . 5 Weapon 9 | . 1 2 . 6 Highest Loss Streak 14 | . 3 2 . 14 To Critical Strikes . | . . . . . Average Backups 12 | 3 6 7 14 19 Power 1 | . . . 1 1 Propulsion 4 | 2 3 1 5 7 Utility 3 | . 1 2 3 5 Weapon 2 | . 2 2 2 3 Tool/Special . | . . . . . Unused Backups 14 | . 1 . 6 7 Power 2 | . . . 1 1 Propulsion 6 | . 1 . 2 3 Utility 5 | . . . 2 3 Weapon 1 | . . . 1 . Tool/Special . | . . . . . Average Slot Usage (%) 94 | . 93 86 98 94 Engine 11 | . 13 11 11 10 Treads 27 | . 18 22 33 30 Leg 3 | . 9 10 . . Device 1 | . . . . 6 Storage 11 | . 14 11 11 10 Protection 14 | . 8 9 20 13 Energy Gun 3 | . 8 7 . . Energy Cannon 5 | . . . 10 5 Ballistic Gun 12 | . 14 12 11 14 Ballistic Cannon 1 | . 5 . . . Peak Build Rating 20 | 6 7 12 20 20 Average Rating 13 | 4 6 9 16 17 On Entrance 8 | . 6 7 11 18 Avg Prop Armor Cover (%) 10 | . . 10 . . Naked Turns . | . . . . . Heaviest Build 63 | 10 15 25 61 63 Greatest Support 66 | 40 40 60 60 66 Greatest Overweight (x) 3 | . . . 1 3 Average Overweight (x) . | . . . . . Largest Inventory Capacity 20 | 8 8 10 20 20 Average Capacity 13 | 7 8 9 16 19 Most Carried 20 | 7 8 10 20 20 Average Carried 12 | 3 6 7 14 18 Final Capacity 20 | 8 8 10 20 5 Final Carried 20 | 7 5 9 20 5 Class Distribution -------------------- 88% | Mutant 11% | Scavenger-Mutant Dominant Class ---------------- Mutant | -10/Materials Mutant | -9/Materials Mutant | -9/Storage Scavenger-Mutant | -9/Garrison Resources | -11 -10 -9 -9 -9 ----------- Run | Yrd Mat Mat Sto Gar Matter Collected 1444 | 261 160 168 433 422 Remotely . | . . . . . Salvage Created 2824 | 145 486 423 966 804 Parts 144 | 11 24 18 53 38 Haulers Intercepted 5 | . 1 1 3 . Recyclers Shooed 1 | 1 . . . . Parts Field Recycled . | . . . . . Retrieved Matter . | . . . . . Parts Self-Destructed . | . . . . . Prevented . | . . . . . Parts Restored . | . . . . . Kills | -11 -10 -9 -9 -9 ------- Run | Yrd Mat Mat Sto Gar Combat Hostiles Destroyed 60 | . 15 6 16 23 Guns 37 | . 13 6 5 13 Cannons 18 | . 2 . 11 5 AOE 5 | . . . . 5 Classes Destroyed 13 | 2 3 3 3 2 Worker 2 | . . . 2 . Tunneler 3 | 3 . . . . Hauler 5 | . 1 1 3 . Recycler 3 | 1 . 2 . . Operator 1 | . . 1 . . Watcher 2 | . . 1 1 . Swarmer 13 | . 6 . 1 6 Grunt 31 | . 9 5 8 9 Brawler 1 | . . . 1 . Duelist 1 | . . . 1 . Sentry 12 | . . 1 5 6 Specialist 1 | . . . . 1 Programmer 1 | . . . . 1 Best Kill Streak 5 | 4 3 4 5 5 Combat Bots Only 5 | . 3 3 3 5 Max Kills in Single Turn 2 | 1 1 1 1 2 Gunslinging 1 | . . . . 1 Exploded 2 | . . . . 2 Melee . | . . . . . Uniques/NPCs Destroyed . | . . . . . Combat | -11 -10 -9 -9 -9 -------- Run | Yrd Mat Mat Sto Gar Hostile Shots Fired 430 | . 93 44 47 246 Missed 102 | . 25 10 12 55 Hits 328 | . 68 34 35 191 Projectile 328 | . 68 34 35 191 Critical Strikes 9 | . . 1 1 7 Damage Taken 4336 | . 759 436 444 2697 Core 592 | . 183 81 10 318 Absorbed by Shields 12 | . . . . 12 Redirected to Shielding 50 | . 11 39 . . Regen/Repaired (Parts) 114 | . 114 . . . Core Remaining (%) 63 | 100 26 . . . Volleys Fired 235 | 9 55 37 47 87 Largest 2 | 2 2 2 2 2 Hottest 91 | 60 60 73 91 91 Shots Fired 424 | 18 109 66 94 137 Gun 325 | 18 99 56 48 104 Cannon 93 | . 10 10 45 28 Launcher 6 | . . . 1 5 Special . | . . . . . Kinetic 258 | 9 65 39 48 97 Thermal 153 | 9 44 27 45 28 Explosive 6 | . . . 1 5 Electromagnetic 7 | . . . . 7 Robot Hit Streak 17 | 5 17 11 11 17 Robot Miss Streak 4 | 3 3 2 2 4 Penetration Max . | . . . . . Secondary Targets 2 | . 1 . . 1 Max Gunslinging Chain 1 | . 1 . . 1 Shots Hit Robots 268 | 13 75 51 45 84 Core Hits 117 | 6 31 19 30 31 Critical Kills . | . . . . . Critical Parts Destroyed . | . . . . . Critical Strikes 3 | . . 3 . . Burn 2 | . . 2 . . Blast 1 | . . 1 . . Melee Attacks 7 | . . . . 7 Impact 7 | . . . . 7 Slashing . | . . . . . Piercing . | . . . . . Sneak Attacks . | . . . . . Combat Hostiles . | . . . . . Follow-up Attacks . | . . . . . Damage Inflicted 4454 | 133 752 730 916 1923 Guns 2752 | 131 680 564 267 1110 Cannons 1093 | . 67 149 621 256 Explosions 454 | . . . . 454 Melee 95 | . . . . 95 Ramming 60 | 2 5 17 28 8 Kinetic 2169 | 44 381 444 267 1033 Thermal 1599 | 87 366 269 621 256 Explosive 454 | . . . . 454 Electromagnetic 77 | . . . . 77 Impact 95 | . . . . 95 Slashing . | . . . . . Piercing . | . . . . . Highest Corruption 11 | . . . 2 11 Average Corruption 2 | . . . 2 2 Corruption Purged . | . . . . . Corruption Blocked . | . . . . . Effects 39 | . . . 27 12 Message Errors 10 | . . . 7 3 Matter Fused 8 | . . . 6 2 Heat Flow Errors 5 | . . . 3 2 Energy Discharges 6 | . . . 4 2 Data Loss (minor) 7 | . . . 4 3 Data Loss (major) 1 | . . . 1 . Misfires 2 | . . . 2 . Overload Shots . | . . . . . Overflow Damage 51 | . . . 3 48 Projectiles 3 | . . . 3 . Explosions . | . . . . . Melee 48 | . . . . 48 Knockbacks . | . . . . . Impact . | . . . . . Kinetic . | . . . . . Secondary . | . . . . . Self-Inflicted Damage 169 | . . . . 169 Shots 5 | . . . . 5 Rammed 13 | 2 . 4 4 3 Targets Rammed 15 | 2 1 5 4 3 Kicked 1 | . 1 . . . Crushed 1 | . . 1 . . Highest Temperature 246 | 60 194 117 234 246 Average Temperature 60 | 31 48 37 59 92 Received Heat Transfer 1059 | . 207 216 204 432 Effects 1 | . . . . 1 Interference 1 | . . . . 1 Siege Activations . | . . . . . Martial Activations . | . . . . . Shielding Activations . | . . . . . Robots Disrupted . | . . . . . Combat Hostiles . | . . . . . Robots Corrupted . | . . . . . Combat Hostiles . | . . . . . Parts Fried . | . . . . . Impact Corruptions 3 | . . . . 3 Robots Melted . | . . . . . Combat Hostiles . | . . . . . Parts Melted 4 | . . 2 1 1 Heat Transferred 3467 | 200 825 925 1073 444 Parts Sabotaged . | . . . . . Parts Stolen . | . . . . . Parts Stripped . | . . . . . Power Chain Reactions . | . . . . . Alert | -11 -10 -9 -9 -9 ------- Run | Yrd Mat Mat Sto Gar Maximum Alert Level 3 | . . . 2 3 Low Security (%) 43 | 100 100 100 14 . Level 1 40 | . . . 83 26 Level 2 11 | . . . 2 53 Level 3 4 | . . . . 20 Level 4 . | . . . . . Level 5 . | . . . . . High Security . | . . . . . Max Security . | . . . . . Peak Influence 762 | 10 170 74 414 762 Initial 202 | . . 11 . 202 Average 246 | 1 106 19 275 513 Influence Increases 2270 | 20 457 209 879 705 Destroy 0b10 Robot/C 1420 | . 300 120 500 500 Destroy 0b10 Robot/NC 85 | 20 5 25 35 . Destroy Leader 226 | . 62 34 120 10 Allied During Kill 68 | . . . 64 4 Successful Hack 74 | . 30 13 31 . Disable Machine 90 | . . . 90 . Anti-Garrison Action 100 | . . . . 100 Destroy Structure 42 | . . 2 9 31 Lose Combat Pursuer 165 | . 60 15 30 60 Influence Decreases 1583 | 20 430 236 568 329 Entered New Map 125 | . . 16 . 109 Time Decay 1157 | 20 400 209 528 . Lost Part 241 | . 30 11 . 200 Lost Ally 60 | . . . 40 20 Squads Dispatched 7 | . 2 . 5 . Investigation 1 | . 1 . . . Extermination . | . . . . . Reinforcement 1 | . 1 . . . Assault 2 | . . . 2 . Garrison 3 | . . . 3 . Intercept . | . . . . . Searches Triggered . | . . . . . Construction Impeded . | . . . . . Haulers Reinforced . | . . . . . Active Scanning Responses . | . . . . . Cargo Convoy Interrupts . | . . . . . Stealth | -11 -10 -9 -9 -9 --------- Run | Yrd Mat Mat Sto Gar Distress Signals 5 | . 2 2 1 . Communications Jammed . | . . . . . Distress Signals . | . . . . . Times Spotted 98 | . 23 15 29 31 Peak Tracking Total 7 | . 6 4 6 7 Tactical Retreats 8 | . 2 1 2 3 Traps | -11 -10 -9 -9 -9 ------- Run | Yrd Mat Mat Sto Gar Traps Triggered 7 | . 5 . 1 1 Indirectly . | . . . . . Trap Hack Attempts . | . . . . . Triggered . | . . . . . Disarmed . | . . . . . Reprogrammed . | . . . . . Reused . | . . . . . Traps Extracted . | . . . . . Installed . | . . . . . Triggered . | . . . . . Machines | -11 -10 -9 -9 -9 ---------- Run | Yrd Mat Mat Sto Gar Machines Disabled 8 | . . . 6 2 Max in Single Turn 1 | . . . 1 1 Garrison Relay 1 | . . . . 1 Machines Repaired . | . . . . . Machines Dismantled 2 | . . . 2 . Machines Sabotaged . | . . . . . Overloaded Fab Kills . | . . . . . Hacking | -11 -10 -9 -9 -9 --------- Run | Yrd Mat Mat Sto Gar Machines Accessed 23 | . 6 4 12 1 Terminals 21 | . 5 4 11 1 Fabricators . | . . . . . Repair Stations 1 | . 1 . . . Recycling Units . | . . . . . Scanalyzers . | . . . . . Garrison Access 1 | . . . 1 . Total Hacks 51 | . 14 12 23 2 Successful 31 | . 9 7 15 . Failed 20 | . 5 5 8 2 Catastrophic 1 | . . . . 1 Database Lockouts . | . . . . . Manual 31 | . 10 9 12 . Terminals 46 | . 12 12 20 2 Fabricators . | . . . . . Repair Stations 2 | . 2 . . . Recycling Units . | . . . . . Scanalyzers . | . . . . . Garrison Access 3 | . . . 3 . Terminal Hacks 8 | . . 2 6 . Robot Analysis 2 | . . 2 . . Prototype ID Bank 1 | . . . 1 . Open Door 5 | . . . 5 . Fabricator Hacks . | . . . . . Repair Station Hacks 2 | . 2 . . . Scan Component 1 | . 1 . . . Repair 1 | . 1 . . . Recycling Unit Hacks . | . . . . . Scanalyzer . | . . . . . Garrison Access Hacks 1 | . . . 1 . Unlock Access 1 | . . . 1 . Unauthorized Hacks 20 | . 7 5 8 . Terminals 20 | . 7 5 8 . Botnet 6 | . 2 1 3 . Skim 14 | . 5 4 5 . Fabricators . | . . . . . Repair Stations . | . . . . . Recycling Units . | . . . . . Scanalyzers . | . . . . . Garrison Access . | . . . . . Data Cores Recovered 1 | . . 1 . . Used . | . . . . . Hacking Detections 16 | . 4 3 8 1 Full Trace Events 1 | . . . . 1 Feedback Events . | . . . . . Feedback Blocked . | . . . . . Robot Schematics Acquired . | . . . . . Robots Built . | . . . . . Authchips . | . . . . . Time . | . . . . . Total Robot Build Rating . | . . . . . Part Schematics Acquired . | . . . . . Parts Built . | . . . . . Authchips . | . . . . . Time . | . . . . . Total Part Build Rating . | . . . . . Part Studies Acquired . | . . . . . Parts Repaired 1 | . 1 . . . Time 26 | . 26 . . . Parts Recycled . | . . . . . Recycled Matter . | . . . . . Retrieved Matter . | . . . . . Retrieved Components . | . . . . . Parts Scanalyzed . | . . . . . Part Schematics Acquired . | . . . . . Parts Damaged . | . . . . . Bothacking | -11 -10 -9 -9 -9 ------------ Run | Yrd Mat Mat Sto Gar Used RIF Installer . | . . . . . Robots Hacked . | . . . . . Non-combat . | . . . . . Combat . | . . . . . Robot Hacks Applied . | . . . . . Relay Couplers Released 4 | . . . . 4 Machine Destruction 4 | . . . . 4 Fabnet Peak Effective % . | . . . . . Robots Rewired 1 | . . . . 1 Allies Hacked . | . . . . . Hacks Repelled . | . . . . . Allies | -11 -10 -9 -9 -9 -------- Run | Yrd Mat Mat Sto Gar Total Allies 3 | . . . 2 1 Largest Group 2 | . . . 2 1 Highest-Rated Group 62 | . . . 62 24 Highest-Rated Ally 31 | . . . 31 24 Total Orders . | . . . . . Ally Attacks 56 | . . . 51 5 Total Damage 770 | . . . 630 140 Kills 12 | . . . 10 2 Allies Corrupted . | . . . . . Allies Melted . | . . . . . Intel | -11 -10 -9 -9 -9 ------- Run | Yrd Mat Mat Sto Gar Active Infowar (turns) . | . . . . . Robot Analysis Total 2 | . . 2 . . Derelict Logs Recovered . | . . . . . Drone Launches . | . . . . . Drone Recoveries . | . . . . . Exploration | -11 -10 -9 -9 -9 ------------- Run | Yrd Mat Mat Sto Gar Turns Passed 4804 | 128 1010 671 2000 995 Spaces Moved 2172 | 55 578 362 862 315 Core 6 | 3 . . . 3 Treads 1719 | 52 291 202 862 312 Legs 447 | . 287 160 . . Wheels . | . . . . . Hover . | . . . . . Flight . | . . . . . Fastest Speed 50 | 50 120 120 160 160 Average Speed 177 | 154 140 142 203 222 Slowest Speed 320 | 160 160 160 240 320 Overloaded Moves . | . . . . . Propulsion Burnouts . | . . . . . Robots Hopped . | . . . . . Potential Cave-ins . | . . . . . Cave-ins Triggered . | . . . . . Exploration Rate (%) 52 | 3 96 32 88 43 Regions Visited 4 Branch Regions 1 Pre-discovered Areas 2 | . 1 . 1 . Known Exits Taken 3 | . 1 1 1 . Unknown Exits Taken 1 | 1 . . . . Scrap Searched . | . . . . . Spaces Dug 9 | . . . 7 2 Terrain Destroyed 19 | . . . 7 12 Melee . | . . . . . Projectile . | . . . . . AOE 19 | . . . 7 12 Terrain Rammed . | . . . . . Walls Destroyed . | . . . . . Machines Disabled . | . . . . . Actions | -11 -10 -9 -9 -9 --------- Run | Yrd Mat Mat Sto Gar Total 2664 | 78 678 449 1006 453 Wait 82 | . 34 28 15 5 Move 2168 | 54 577 361 861 315 Hop . | . . . . . Pick Up 39 | 7 3 5 21 3 Fast Attach 26 | 6 3 5 9 3 Attach 17 | . 3 3 . 11 Detach 4 | . . 2 2 . Swap 27 | . 1 1 14 11 Drop 30 | . 1 2 25 2 Fire 235 | 9 55 37 47 87 Melee 7 | . . . . 7 Ram . | . . . . . Kick 1 | . 1 . . . Crush 14 | 2 . 5 4 3 Escape Stasis 3 | . . . . 3 Rewire 3 | . . . . 3 Trap . | . . . . . Miscellaneous 8 | . . . 8 . Route ------- -11/Scrapyard -10/Materials (discovered 6 exits: *Mat x3 / [*Min x2] / Sub) -9/Materials (discovered 2 exits: *Min / *Sto) -9/Storage (discovered 3 exits: [*Mat] / *Rec / Gar) -9/Garrison History --------- Turn | Location | Event 4 | -11/Scrapyard | Discovered new exit (range 15) 129 | -11/Scrapyard | Entered Materials 301 | -10/Materials | Build established: Mutant 419 | -10/Materials | Core integrity fell below 50% 453 | -10/Materials | Discovered new exit (range 3) 454 | -10/Materials | Discovered new exit (range 7) 581 | -10/Materials | Discovered new exit (range 16) 629 | -10/Materials | Derelicts attacked the area 681 | -10/Materials | Learned location of Storage (-9) 769 | -10/Materials | Identified exit to Materials 769 | -10/Materials | Identified exit to Subcaves 770 | -10/Materials | Learned location of 1 exit from Recycling 775 | -10/Materials | Learned 2 Storage zone layouts 784 | -10/Materials | Lost 3 parts (1p1n1w) 788 | -10/Materials | Learned Storage emergency access door positions 812 | -10/Materials | Learned 4 Recycling zone layouts 841 | -10/Materials | Repaired Lgt. Treads? 1139 | -10/Materials | Entered another Materials area 1139 | -9/Materials | Evolved 2 slots: Propulsion x1, Utility x1 1140 | -9/Materials | Identified exit to Mines 1140 | -9/Materials | Identified exit to Storage 1810 | -9/Materials | Entered Storage 2058 | -9/Storage | Met a pair of Derelict thieves 2071 | -9/Storage | Garrison activated, responded to threat 2398 | -9/Storage | Found Prototype Launcher 2398 | -9/Storage | Identified Scatter Rocket Array 2787 | -9/Storage | Discovered new exit (range 5) 2790 | -9/Storage | Learned location of Zion (-7) 2831 | -9/Storage | Learned Materials trap positions 2882 | -9/Storage | Identified exit to Recycling 2894 | -9/Storage | Learned 2 Materials zone layouts 3208 | -9/Storage | Identified exit to Garrison 3582 | -9/Storage | Used back door to open Recycling access 3810 | -9/Storage | Entered Garrison 3998 | -9/Garrison | Triggered checkpoint 4029 | -9/Garrison | Garrison Relay disabled 4422 | -9/Garrison | Build established: Scavenger-Mutant 4589 | -9/Garrison | Lost 3 parts (1p1n1w) 4662 | -9/Garrison | Triggered checkpoint 4666 | -9/Garrison | Core integrity fell below 50% 4755 | -9/Garrison | Core integrity fell below 20% 4775 | -9/Garrison | System corruption reached 10% 4805 | -9/Garrison | Destroyed by P-60 Hacker with Shock Rifle Last Messages --------------- 04778_ Destroyed Shock Rifle. 04778_ P-60 Hacker system corrupted by crushing effect. 04780_ XA=ZMEL0N:LQCR9RUR85MS9&DT 04781_ P-60 Hacker misfires. 04781_ Destroyed Gravmag System. 04781_ Destroyed Shock Rifle. 04781_ P-60 Hacker system corrupted by crushing effect. 04795_ System corrupted: Matter fused (-8). 04796_ Dropped Hcp. Storage Unit. 04798_ Imp. Treads destroyed. 04801_ Triggered Stasis Trap. 04801_ A bubble of rippling energy engulfs the area. 04801_ Field strength at 94. 04802_ Hvy. Ion Engine destroyed. 04803_ Field strength at 80. 04804_ Field strength at 74. 04805_ Field strength at 68. Map ----- +----------------------------------------------------+ | ????????????????????????????????# ## ## #?? | | ????????????????????????????????# ## ## ### | | ????????????????????????????????" # | | ????????????????????????????????" # | | ????????????????????????????????" # | | ????????????????????????????????" ? | | ????????????????????????????????# ## ## ### | | ??????????????????????########### ## # # # | | ??????????????????????# [%= # | | ??????????????????????# [ | | ??????????????????????# #??##### * # | | ??????????????????????# #??????## ## ## #?? | | ??????????????????????# #???????# ## # #?? | | ??????????????????????# #???????# ####### #? | | ??????????????????????# #???????# #?????## ##? | | ??????????????????????# #???????# #??????# #?? | | ??????????????????????# #???????# #??????# ### | | ?????????????########## ######### #??????# *%=% | | ?????????????# #??????# [### | | ?????????????# #??????# #?? | | ????????????????####### ###+#########??????# #?? | | ??????????????????????# #?# #??????????????# ### | | ??????????????????????# #?#!#??????????????# | | ??????????????????????# #?#=#??????????????# | | ??????????????????????# ###+#??????????????# | | ??????????????????????# |@p!#??????????????####### | | ??????????????????????#####*#????????????????????? | | ??????????????????????????#!#????????????????????? | | ??????????????????????????#=#????????????????????? | | ??????????????????????????#*###??????????????????? | | ??????????????????????????#== #??????????????????? | | ??????????????????????????#[= + ???????????????? | | ??????????????????????????#] #####??????????????? | | ??????????????????????????# ###??????????????????? | | ??????????????????????????# #????????????????????? | | ?????????????????????????? #????????????????????? | | ??????????????????????????# #????????????????????? | | ??????????????????????????# #????????????????????? | | ??????????????????????????# ?????????????????????? | | ??????????????????????????# ?????????????????????? | | ??????????????????????????? ?????????????????????? | | ??????????????????????????? ?????????????????????? | | ??????????????????????????? ?????????????????????? | | ??????????????????????????? ?????????????????????? | | ??????????????????????????? ?????????????????????? | | ?????????????????????????????????????????????????? | | ?????????????????????????????????????????????????? | | ?????????????????????????????????????????????????? | | ?????????????????????????????????????????????????? | | ?????????????????????????????????????????????????? | +----------------------------------------------------+ Best States ------------- Heat Dissipation 38 Energy Generation 14 Energy Capacity 280 Matter Stores 300 Matter Capacity 300 Sight Range 16 Terrain Scan Density 10 Armor Coverage 300 Propulsion Shielding 33 Evasion (%) 55 Recoil Reduction 3 Item Schematics ----------------- None Robot Schematics ------------------ None Fabricated ------------ Nothing Repaired ---------- Lgt. Treads | 18% | -10/Materials Studied --------- None Alien Tech Used ----------------- None Achievements -------------- None Challenges ------------ None Game ------ Seed ShockboltDeepInverter Manual? 0 Play Time 00:25:54 Cumulative 278.9 hours Start 2026.06.29 @ 14:45:38 End 2026.06.29 @ 15:07:11 Sessions 1 Manual Loads 0 Difficulty Rogue Special Mode None Game No. 286 Rogue 286 Adventurer 0 Explorer 0 Win Type - Total 14 Types 9/1/2/0/1/0/0/0/0/1 Lore% 89 Gallery% 77 Achievement% 64 Wizard Run 0 Options --------- Layout 1 ASCII 0 Keyboard 1 Movement Arrows Keybinds 0 Fullscreen 1 Font 24/Smallcaps Map View 50x40 Zoom Use 0% Tactical HUD 1 Map Filters NONE Filters NONE Steam 1 RUN: 780c0b82-0335-4624-994d-af51686e828d